bitfinex-derivatives/quotes_BTCF0:USTF0_20241224
["timestamp","ask_amount","ask_price","bid_price","bid_amount"]
[1735017299234,0.3628,94462.0,94456.0,0.053005]
[1735017299635,0.3628,94462.0,94457.0,0.053005]
[1735017300735,0.3628,94462.0,94457.0,0.054005]
[1735017301736,0.3608,94462.0,94457.0,0.054005]
[1735017301940,0.3628,94462.0,94457.0,0.054005]
[1735017308129,0.3628,94462.0,94459.0,0.053004]
[1735017308350,0.002,94462.0,94461.0,0.413803]
[1735017308847,0.002,94462.0,94461.0,0.45428853]
[1735017309947,0.002,94462.0,94461.0,0.45528853]
[1735017310330,0.1266,94469.0,94461.0,0.40228553]
[1735017310534,0.1266,94469.0,94468.0,0.052999]
[1735017311635,0.1316,94469.0,94468.0,0.052999]
[1735017317645,0.1316,94469.0,94468.0,0.068879]
[1735017318552,0.005,94469.0,94468.0,0.052999]
[1735017319154,0.005,94469.0,94468.0,0.068879]
[1735017320053,0.004,94469.0,94468.0,0.071879]
[1735017320557,0.25376873,94482.0,94468.0,0.071879]
[1735017320558,0.1266,94482.0,94480.0,0.052992]
[1735017320748,0.13757307,94482.0,94480.0,0.052992]
[1735017321541,0.13757307,94482.0,94472.0,0.41048256]
[1735017321749,0.13757307,94482.0,94472.0,0.72711472]
[1735017321947,0.13757307,94482.0,94480.0,0.052992]
[1735017323056,0.14057307,94482.0,94480.0,0.052992]
[1735017324056,0.13757307,94482.0,94480.0,0.052992]
[1735017324258,0.13957307,94482.0,94480.0,0.052992]
[1735017325043,0.12716873,94493.0,94482.0,0.052991]
[1735017325250,0.12716873,94494.0,94492.0,0.052985]
[1735017325548,0.1,94500.0,94499.0,0.052982]
[1735017325744,0.10056001,94500.0,94499.0,0.413782]
[1735017325946,0.1,94500.0,94499.0,0.413782]
[1735017326754,0.101,94500.0,94499.0,0.413782]
[1735017327753,0.101,94500.0,94499.0,0.414782]
[1735017337758,0.101,94500.0,94499.0,0.430662]
[1735017340063,0.05297,94519.0,94505.0,0.052978]
[1735017340960,0.09304409,94514.0,94505.0,0.052978]
[1735017341157,0.09504409,94514.0,94505.0,0.052978]
[1735017341552,0.09504409,94514.0,94511.0,0.052974]
[1735017343065,0.09604409,94514.0,94511.0,0.052974]
[1735017343468,0.09504409,94514.0,94511.0,0.052974]
[1735017343669,0.09304409,94514.0,94511.0,0.052974]
[1735017343968,0.09504409,94514.0,94511.0,0.052974]
[1735017347470,0.09504409,94514.0,94512.0,0.052974]
[1735017348674,0.09304409,94514.0,94512.0,0.052974]
[1735017348861,0.09504409,94514.0,94512.0,0.052974]
[1735017349168,0.09604409,94514.0,94512.0,0.052974]
[1735017357676,0.09604409,94514.0,94513.0,0.01588]
[1735017358272,0.09404409,94514.0,94513.0,0.01588]
[1735017358476,0.09304409,94514.0,94513.0,0.01588]
[1735017359082,0.09304409,94514.0,94513.0,0.01988]
[1735017360081,0.09304409,94514.0,94513.0,0.02088]
[1735017366591,0.0821,94514.0,94513.0,0.06134023]
[1735017366791,0.0821,94514.0,94513.0,0.10117768]
[1735017366991,0.0821,94514.0,94513.0,0.13026599]
[1735017367197,0.0423,94521.0,94519.0,0.05297]
[1735017367696,0.05305394,94521.0,94519.0,0.05297]
[1735017368401,0.05405394,94521.0,94519.0,0.05297]
[1735017368596,0.05405394,94521.0,94519.0,0.05397]
[1735017370290,0.05405394,94521.0,94519.0,0.001]
[1735017377899,0.05405394,94521.0,94520.0,0.01588]
[1735017378595,0.05405394,94521.0,94515.0,0.12703216]
[1735017378596,0.35405394,94521.0,94515.0,0.12703216]
[1735017378796,0.35405394,94521.0,94507.0,0.24338577]
[1735017378797,0.052977,94508.0,94507.0,0.24338577]
[1735017378997,0.3608,94508.0,94495.0,0.00064]
[1735017379307,0.052985,94493.0,94492.0,0.44458831]
[1735017379505,0.052985,94493.0,94492.0,0.44394831]
[1735017380391,0.052985,94493.0,94484.0,0.00064]
[1735017380594,0.052985,94493.0,94483.0,0.14748362]
[1735017380902,0.052986,94492.0,94483.0,0.10764617]
[1735017382494,0.052986,94492.0,94483.0,0.10864617]
[1735017383497,0.01091984,94493.0,94483.0,0.10864617]
[1735017383706,0.052988,94488.0,94483.0,0.10864617]
[1735017385302,0.3608,94486.0,94483.0,0.001]
[1735017385503,0.05299,94485.0,94483.0,0.001]
[1735017385697,0.05299,94485.0,94477.0,0.01588]
[1735017385897,0.05299,94485.0,94483.0,0.002]
[1735017386301,0.05299,94485.0,94477.0,0.01588]
[1735017386505,0.3618,94486.0,94477.0,0.01588]
[1735017386506,0.052991,94483.0,94477.0,0.01588]
[1735017386808,0.3658,94486.0,94477.0,0.01588]
[1735017387004,0.001,94485.0,94477.0,0.01588]
[1735017387205,0.005,94485.0,94477.0,0.01588]
[1735017387898,0.052992,94482.0,94477.0,0.01588]
[1735017388504,0.001,94483.0,94477.0,0.01588]
[1735017388703,0.001,94483.0,94478.0,0.0402]
[1735017389102,0.001,94482.0,94478.0,0.0402]
[1735017389605,0.001,94483.0,94478.0,0.0402]
[1735017389806,0.003,94483.0,94478.0,0.0402]
[1735017390205,0.001,94482.0,94478.0,0.0402]
[1735017390603,0.004,94482.0,94478.0,0.0402]
[1735017391602,0.003,94482.0,94478.0,0.0402]
[1735017392412,0.004,94482.0,94478.0,0.0402]
[1735017394113,0.004,94482.0,94477.0,0.068874]
[1735017395415,0.001,94482.0,94477.0,0.068874]
[1735017395615,0.003,94482.0,94477.0,0.068874]
[1735017397614,0.003,94482.0,94477.0,0.052994]
[1735017397812,0.003,94482.0,94478.0,0.01588]
[1735017398510,0.003,94482.0,94479.0,0.01588]
[1735017399513,0.004,94482.0,94479.0,0.01588]
[1735017400321,0.056991,94482.0,94479.0,0.01588]
[1735017402722,0.056991,94482.0,94476.0,0.0001306]
[1735017404122,0.055991,94482.0,94476.0,0.0001306]
[1735017404323,0.056991,94482.0,94476.0,0.0001306]
[1735017404930,0.055991,94482.0,94476.0,0.0001306]
[1735017410628,0.09493316,94479.0,94476.0,0.0001306]
[1735017411622,0.09693316,94479.0,94476.0,0.0001306]
[1735017411818,0.09793316,94479.0,94476.0,0.0001306]
[1735017412020,0.003,94479.0,94476.0,0.0001306]
[1735017412416,0.003,94479.0,94476.0,0.3609306]
[1735017413225,0.003,94479.0,94477.0,0.03983745]
[1735017413526,0.003,94479.0,94478.0,0.08031292]
[1735017413917,0.003,94479.0,94478.0,0.04047547]
[1735017415327,0.001,94479.0,94478.0,0.04047547]
[1735017415532,0.004,94479.0,94478.0,0.04047547]
[1735017416032,0.004,94479.0,94477.0,0.052994]
[1735017416925,0.004,94479.0,94478.0,0.04050174]
[1735017417326,0.09893316,94479.0,94478.0,0.04050174]
[1735017417531,0.09893316,94479.0,94477.0,0.052994]
[1735017417727,0.09593316,94479.0,94477.0,0.068874]
[1735017417935,0.09793316,94479.0,94478.0,0.0405024]
[1735017419038,0.09893316,94479.0,94478.0,0.0405024]
[1735017419536,0.004,94479.0,94478.0,0.0405024]
[1735017419722,0.003,94479.0,94477.0,0.068874]
[1735017420036,0.004,94479.0,94478.0,0.04050512]
[1735017420728,0.09593316,94479.0,94478.0,0.04050512]
[1735017420922,0.09793316,94479.0,94478.0,0.04050512]
[1735017421734,0.09893316,94479.0,94478.0,0.04050512]
[1735017422031,0.09893316,94479.0,94477.0,0.01588]
[1735017422244,0.09893316,94479.0,94476.0,0.0001306]
[1735017422245,0.09893316,94479.0,94478.0,0.04050922]
[1735017423140,0.09893316,94479.0,94477.0,0.04050922]
[1735017423731,0.09793316,94479.0,94477.0,0.04050922]
[1735017424134,0.09493316,94478.0,94477.0,0.04050922]
[1735017425336,0.002,94478.0,94477.0,0.04050922]
[1735017426239,0.09693316,94478.0,94477.0,0.04050922]
[1735017426830,0.09793316,94478.0,94477.0,0.04050922]
[1735017427442,0.003,94478.0,94477.0,0.04050922]
[1735017428340,0.003,94478.0,94477.0,0.08034667]
[1735017428540,0.09793316,94478.0,94477.0,0.08034667]
[1735017428844,0.09793316,94478.0,94477.0,0.03983745]
[1735017429033,0.09793316,94478.0,94476.0,0.0001306]
[1735017429836,0.12666478,94477.0,94476.0,0.0001306]
[1735017430040,0.12666478,94477.0,94476.0,0.0406613]
[1735017430341,0.12666478,94477.0,94476.0,0.0001306]
[1735017430539,0.48746478,94477.0,94476.0,0.0001306]
[1735017430842,0.3608,94477.0,94476.0,0.0001306]
[1735017431041,0.3618,94477.0,94476.0,0.0001306]
[1735017431437,0.3638,94477.0,94476.0,0.0001306]
[1735017433941,0.416794,94477.0,94476.0,0.0001306]
[1735017438940,0.47756676,94477.0,94476.0,0.0001306]
[1735017439146,0.47756676,94477.0,94459.0,0.01588]
[1735017439147,0.053002,94464.0,94459.0,0.01588]
[1735017439447,0.413803,94462.0,94459.0,0.01588]
[1735017439649,0.413803,94462.0,94455.0,0.053006]
[1735017439842,0.413803,94462.0,94456.0,0.04047821]
[1735017440236,0.00010481,94461.0,94459.0,0.001]
[1735017440737,0.00010481,94461.0,94459.0,0.006]
[1735017442051,0.00010481,94461.0,94459.0,0.005]
[1735017442843,0.00010481,94461.0,94456.0,0.008]
[1735017443046,0.053004,94459.0,94456.0,0.008]
[1735017443350,0.053004,94459.0,94450.0,0.08654724]
[1735017443946,0.053004,94459.0,94456.0,0.008]
[1735017445344,0.053004,94459.0,94456.0,0.006]
[1735017445545,0.053004,94459.0,94450.0,0.09854724]
[1735017446055,0.053004,94459.0,94450.0,0.08954724]
[1735017446247,0.053004,94459.0,94456.0,0.008]
[1735017446452,0.053005,94457.0,94456.0,0.008]
[1735017446654,0.053005,94457.0,94456.0,0.002]
[1735017447158,0.053008,94451.0,94450.0,0.003]
[1735017448551,0.053012,94445.0,94440.0,0.00010761]
[1735017450252,0.053012,94445.0,94440.0,0.00610761]
[1735017451862,0.053014,94441.0,94440.0,0.00610761]
[1735017452956,0.053014,94441.0,94440.0,0.00510761]
[1735017453164,0.053014,94441.0,94440.0,0.00610761]
[1735017453859,0.053023,94425.0,94418.0,0.0358]
[1735017454862,0.06391417,94425.0,94418.0,0.0358]
[1735017455061,0.01089117,94425.0,94418.0,0.0358]
[1735017455257,0.053025,94423.0,94418.0,0.0358]
[1735017455559,0.3608,94428.0,94418.0,0.0418]
[1735017455750,0.37161537,94428.0,94418.0,0.0418]
[1735017455951,0.3608,94420.0,94418.0,0.0418]
[1735017457053,0.3608,94420.0,94418.0,0.001]
[1735017457254,0.3608,94420.0,94418.0,0.005]
[1735017458557,0.3608,94420.0,94418.0,0.001]
[1735017458751,0.3608,94420.0,94418.0,0.006]
[1735017459457,9.989e-05,94419.0,94418.0,0.006]
[1735017461558,9.989e-05,94419.0,94405.0,0.038]
[1735017461764,0.05312589,94419.0,94418.0,0.006]
[1735017462650,0.05312589,94419.0,94405.0,0.042]
[1735017462857,0.00109989,94419.0,94405.0,0.051]
[1735017463262,9.989e-05,94419.0,94405.0,0.042]
[1735017463463,0.05312589,94419.0,94418.0,0.006]
[1735017464156,9.989e-05,94419.0,94418.0,0.006]
[1735017464865,0.00109989,94419.0,94415.0,0.0371]
[1735017465468,9.989e-05,94419.0,94418.0,0.005]
[1735017465766,9.989e-05,94419.0,94418.0,0.006]
[1735017465962,9.989e-05,94419.0,94418.0,0.001]
[1735017466468,9.989e-05,94419.0,94416.0,0.053028]
[1735017466668,9.989e-05,94419.0,94418.0,0.005]
[1735017468566,9.989e-05,94419.0,94418.0,0.006]
[1735017478065,0.36089989,94419.0,94418.0,0.006]
[1735017479873,0.39909989,94419.0,94418.0,0.006]
[1735017480474,0.053035,94404.0,94403.0,0.0001332]
[1735017481960,0.054035,94404.0,94403.0,0.0081332]
[1735017482167,0.001,94404.0,94403.0,0.0081332]
[1735017482870,0.09625667,94404.0,94403.0,0.0111332]
[1735017483265,0.10709465,94404.0,94403.0,0.0111332]
[1735017484867,0.01183798,94404.0,94403.0,0.0111332]
[1735017486372,0.01083798,94404.0,94403.0,0.0111332]
[1735017486677,0.053034,94405.0,94403.0,0.0111332]
[1735017487868,0.09525667,94404.0,94403.0,0.0111332]
[1735017488190,0.09525667,94404.0,94403.0,0.0101332]
[1735017488372,0.09525667,94404.0,94403.0,0.0081332]
[1735017488875,0.14829067,94405.0,94403.0,0.0081332]
[1735017489178,0.15870833,94405.0,94403.0,0.0081332]
[1735017489970,0.06345166,94405.0,94403.0,0.0021332]
[1735017490180,0.001,94404.0,94403.0,0.0081332]
[1735017490783,0.06445166,94405.0,94403.0,0.0081332]
[1735017491278,0.06445166,94405.0,94403.0,0.0021332]
[1735017491474,0.001,94404.0,94403.0,0.0081332]
[1735017493082,0.06445166,94405.0,94403.0,0.0081332]
[1735017493384,0.06345166,94405.0,94403.0,0.0021332]
[1735017493580,0.001,94404.0,94403.0,0.0081332]
[1735017495988,0.06345166,94405.0,94403.0,0.0001332]
[1735017496174,0.06445166,94405.0,94403.0,0.0081332]
[1735017496681,0.001,94404.0,94403.0,0.0081332]
[1735017497678,0.001,94404.0,94403.0,0.0021332]
[1735017497883,0.06445166,94405.0,94403.0,0.0061332]
[1735017498078,0.06445166,94405.0,94403.0,0.0081332]
[1735017500186,0.001,94404.0,94403.0,0.0081332]
[1735017500686,0.06345166,94405.0,94403.0,0.0021332]
[1735017500885,0.06445166,94405.0,94403.0,0.0081332]
[1735017501374,0.06445166,94405.0,94403.0,0.0061332]
[1735017501577,0.06445166,94405.0,94403.0,0.0081332]
[1735017502274,0.06345166,94405.0,94403.0,0.0021332]
[1735017502472,0.001,94404.0,94403.0,0.0081332]
[1735017503484,0.06445166,94405.0,94403.0,0.0081332]
[1735017503681,0.3608,94404.0,94403.0,0.0081332]
[1735017504086,0.3618,94404.0,94403.0,0.0081332]
[1735017504888,0.001,94404.0,94403.0,0.0081332]
[1735017505089,0.3618,94404.0,94403.0,0.0081332]
[1735017505487,0.3618,94404.0,94403.0,0.0021332]
[1735017505688,0.3608,94404.0,94403.0,0.0081332]
[1735017506191,0.3608,94404.0,94403.0,0.0021332]
[1735017508691,0.45593947,94404.0,94403.0,0.0021332]
[1735017509683,0.3608,94404.0,94403.0,0.0021332]
[1735017511801,0.13249624,94419.0,94411.0,0.053031]
[1735017512090,0.22259574,94434.0,94418.0,0.3608]
[1735017512290,0.22259574,94434.0,94433.0,0.3608]
[1735017512690,0.22259574,94434.0,94433.0,0.40130055]
[1735017512889,0.22272057,94434.0,94433.0,0.40130055]
[1735017513092,0.22272057,94434.0,94433.0,0.81236267]
[1735017513288,0.22372057,94434.0,94433.0,0.81236267]
[1735017513494,0.09520876,94455.0,94433.0,1.0145085]
[1735017513796,0.1057698,94455.0,94450.0,0.3608]
[1735017515085,0.01056104,94455.0,94450.0,0.3608]
[1735017515286,0.053004,94459.0,94450.0,0.3608]
[1735017515996,0.053005,94458.0,94450.0,0.3608]
[1735017516295,0.053006,94456.0,94455.0,0.18922814]
[1735017517797,0.053006,94456.0,94455.0,0.01592]
[1735017518102,0.053006,94456.0,94455.0,0.01692]
[1735017518790,0.053006,94456.0,94455.0,0.02192]
[1735017519498,0.37141007,94461.0,94455.0,0.02192]
[1735017519690,0.37141007,94461.0,94455.0,0.074926]
[1735017520487,0.37141007,94461.0,94455.0,0.073926]
[1735017520692,0.37141007,94461.0,94455.0,0.02092]
[1735017521498,0.37141007,94461.0,94455.0,0.01592]
[1735017521699,0.37141007,94461.0,94455.0,0.01892]
[1735017522797,0.42441307,94461.0,94455.0,0.01892]
[1735017532709,0.37141007,94461.0,94457.0,0.053005]
[1735017533703,0.01061007,94461.0,94460.0,0.3608]
[1735017533897,0.0763,94468.0,94460.0,0.3608]
[1735017534298,0.053,94467.0,94460.0,0.3608]
[1735017535698,0.053,94467.0,94460.0,0.3638]
[1735017535900,0.08500134,94468.0,94460.0,0.3638]
[1735017535901,0.053,94466.0,94460.0,0.3638]
[1735017536498,0.053001,94465.0,94460.0,0.3608]
[1735017539009,0.054001,94465.0,94460.0,0.3618]
[1735017539208,0.054001,94465.0,94461.0,0.18922814]
[1735017540806,0.054001,94465.0,94463.0,0.18922814]
[1735017541007,0.001,94465.0,94463.0,0.24223014]
[1735017542204,0.001,94465.0,94463.0,0.24323014]
[1735017542411,0.001,94465.0,94463.0,0.054002]
[1735017542611,0.001,94465.0,94463.0,0.001]
[1735017542809,0.001,94465.0,94464.0,0.053001]
[1735017543612,0.001,94465.0,94464.0,0.26752488]
[1735017544417,0.0763,94468.0,94464.0,0.26752488]
[1735017544619,0.001,94465.0,94464.0,0.26752488]
[1735017545510,0.001,94465.0,94464.0,0.26852488]
[1735017546315,0.00859668,94477.0,94464.0,0.32667618]
[1735017546508,0.09520876,94484.0,94464.0,0.32667618]
[1735017546509,0.1144,94483.0,94476.0,0.413794]
[1735017546710,0.1144,94483.0,94479.0,0.052993]
[1735017547107,0.1144,94483.0,94476.0,0.3608]
[1735017547420,0.1144,94483.0,94480.0,0.052992]
[1735017548229,0.1184,94483.0,94480.0,0.052992]
[1735017548421,0.12710236,94483.0,94480.0,0.052992]
[1735017549716,0.12710236,94483.0,94479.0,0.31582459]
[1735017550020,0.12710236,94483.0,94481.0,0.052991]
[1735017550524,0.12310236,94483.0,94481.0,0.052991]
[1735017551207,0.12310236,94483.0,94482.0,0.3608]
[1735017553415,0.12310236,94483.0,94482.0,0.3628]
[1735017555419,0.052991,94482.0,94481.0,0.19392566]
[1735017555733,0.052991,94482.0,94473.0,0.31521171]
[1735017555910,0.413796,94474.0,94473.0,0.31521171]
[1735017556420,0.053001,94465.0,94460.0,0.10785996]
[1735017557622,0.053001,94465.0,94460.0,0.10985996]
[1735017558023,0.053001,94465.0,94461.0,0.01588]
[1735017558324,0.053002,94463.0,94461.0,0.01588]
[1735017558513,0.3608,94474.0,94460.0,0.002]
[1735017558710,0.04,94462.0,94460.0,0.003]
[1735017559120,0.093003,94462.0,94460.0,0.003]
[1735017559729,0.093003,94462.0,94460.0,0.001]
[1735017560315,0.093003,94462.0,94460.0,0.003]
[1735017560717,0.093003,94462.0,94460.0,0.002]
[1735017561518,0.093003,94462.0,94461.0,0.18913345]
[1735017562721,0.093003,94462.0,94461.0,0.19013345]
[1735017562919,0.093003,94462.0,94461.0,0.001]
[1735017563130,0.093003,94462.0,94457.0,0.3608]
[1735017563320,0.093003,94462.0,94461.0,0.001]
[1735017563321,0.099003,94462.0,94461.0,0.001]
[1735017563921,0.10751793,94462.0,94461.0,0.001]
[1735017564626,0.11151793,94462.0,94461.0,0.001]
[1735017565024,0.11051793,94462.0,94457.0,0.3608]
[1735017565516,0.11151793,94462.0,94461.0,0.001]
[1735017566124,0.11151793,94462.0,94457.0,0.3608]
[1735017566125,0.11051793,94462.0,94457.0,0.3608]
[1735017566722,0.11151793,94462.0,94461.0,0.001]
[1735017566926,0.10751793,94462.0,94461.0,0.001]
[1735017567130,0.11051793,94462.0,94461.0,0.001]
[1735017567740,0.10751793,94462.0,94461.0,0.001]
[1735017568031,0.05451493,94462.0,94461.0,0.001]
[1735017568218,0.052997,94472.0,94462.0,0.053002]
[1735017568424,0.052997,94472.0,94462.0,0.16086196]
[1735017568829,0.05984364,94472.0,94462.0,0.16086196]
[1735017569225,0.052998,94471.0,94462.0,0.16086196]
[1735017569426,0.052998,94471.0,94470.0,0.18910613]
[1735017570929,0.052998,94471.0,94470.0,0.002]
[1735017571533,0.053998,94471.0,94470.0,0.009]
[1735017572529,0.001,94471.0,94470.0,0.009]
[1735017572831,0.001,94471.0,94470.0,0.061998]
[1735017574126,0.052989,94486.0,94470.0,0.12368671]
[1735017574328,0.052989,94486.0,94475.0,0.46865996]
[1735017574531,0.052989,94486.0,94475.0,0.52165496]
[1735017575236,0.052989,94486.0,94475.0,0.83687537]
[1735017575431,0.36771447,94485.0,94475.0,0.83687537]
[1735017576631,0.36771447,94485.0,94476.0,0.51872233]
[1735017576835,0.36871447,94485.0,94476.0,0.51872233]
[1735017577235,0.00791447,94485.0,94476.0,0.51872233]
[1735017577724,0.00791447,94485.0,94484.0,0.3608]
[1735017578838,0.00791447,94485.0,94484.0,0.37768]
[1735017579536,0.00791447,94485.0,94484.0,0.69290041]
[1735017580135,0.00791447,94485.0,94484.0,0.73030041]
[1735017580927,0.00791447,94485.0,94484.0,0.41508]
[1735017581439,0.052984,94494.0,94484.0,0.41508]
[1735017581640,0.052984,94494.0,94485.0,0.052989]
[1735017583539,0.06165229,94494.0,94485.0,0.052989]
[1735017583941,0.06465229,94494.0,94485.0,0.36820941]
[1735017584136,0.06265229,94494.0,94485.0,0.36820941]
[1735017584437,0.06465229,94494.0,94485.0,0.36820941]
[1735017584831,0.06165229,94494.0,94485.0,0.36820941]
[1735017585032,0.06465229,94494.0,94492.0,0.18887432]
[1735017586642,0.06465229,94494.0,94485.0,0.052989]
[1735017586841,0.06165229,94494.0,94485.0,0.052989]
[1735017587042,0.06465229,94494.0,94485.0,0.052989]
[1735017587241,0.06465229,94494.0,94486.0,0.052988]
[1735017587443,0.06465229,94494.0,94487.0,0.052988]
[1735017587844,0.06165229,94494.0,94487.0,0.052988]
[1735017588037,0.06465229,94494.0,94487.0,0.052988]
[1735017588437,0.06165229,94494.0,94487.0,0.052988]
[1735017588743,0.06465229,94494.0,94487.0,0.052988]
[1735017590544,0.06265229,94494.0,94487.0,0.052988]
[1735017590748,2.9e-07,94494.0,94493.0,0.052985]
[1735017590937,0.09503974,94506.0,94505.0,0.052978]
[1735017591244,0.09503974,94506.0,94505.0,0.413778]
[1735017592029,0.038,94519.0,94513.0,0.052974]
[1735017592240,0.00766374,94517.0,94513.0,0.413774]
[1735017592441,0.00766374,94517.0,94516.0,0.052972]
[1735017592648,0.038,94519.0,94516.0,0.052972]
[1735017593441,0.038,94519.0,94518.0,0.18841138]
[1735017594146,0.038,94519.0,94518.0,0.24138238]
[1735017594648,0.04538909,94519.0,94518.0,0.052971]
[1735017594850,0.04538909,94519.0,94518.0,0.053971]
[1735017597146,0.00738909,94519.0,94518.0,0.053971]
[1735017597335,0.0377,94525.0,94518.0,0.053971]
[1735017597735,0.0377,94525.0,94519.0,0.01588]
[1735017597935,0.090667,94525.0,94519.0,0.01588]
[1735017598341,0.3608,94523.0,94519.0,0.01588]
[1735017598551,0.052969,94523.0,94520.0,0.01588]
[1735017599339,0.0387,94525.0,94520.0,0.01588]
[1735017599547,0.052969,94521.0,94520.0,0.01588]
[1735017600446,0.0407,94525.0,94516.0,0.18841138]
[1735017600644,0.052971,94517.0,94516.0,0.18841138]
[1735017601451,0.001,94521.0,94514.0,0.18841138]
[1735017601748,0.0377,94525.0,94514.0,0.18841138]
[1735017601749,0.052973,94515.0,94514.0,0.18841138]
[1735017602643,0.091273,94515.0,94514.0,0.18841138]
[1735017602849,0.091273,94515.0,94502.0,0.05298]
[1735017602850,0.052974,94513.0,94512.0,0.18841138]
[1735017604050,0.052975,94511.0,94510.0,0.18841138]
[1735017604253,0.3608,94517.0,94510.0,0.18841138]
[1735017604458,0.052971,94519.0,94512.0,0.416774]
[1735017604953,0.0605131,94519.0,94512.0,0.416774]
[1735017605250,0.0605131,94519.0,94512.0,0.417774]
[1735017605457,0.0605131,94519.0,94516.0,0.18841138]
[1735017606743,0.0605131,94519.0,94517.0,0.18841138]
[1735017607648,0.0605131,94519.0,94516.0,0.001]
[1735017607943,0.0605131,94519.0,94517.0,0.001]
[1735017615966,0.0605131,94519.0,94518.0,0.25173858]
[1735017617057,0.0605131,94519.0,94518.0,0.25273858]
[1735017617265,0.0605131,94519.0,94518.0,0.001]
[1735017617864,0.0605131,94519.0,94518.0,0.01688]
[1735017618457,0.0605131,94519.0,94518.0,0.001]
[1735017618766,0.0605131,94519.0,94518.0,0.01688]
[1735017621063,0.0605131,94519.0,94518.0,0.22459245]
[1735017621965,0.0075421,94519.0,94518.0,0.22459245]
[1735017622165,0.090667,94525.0,94518.0,0.27756345]
[1735017623470,0.091667,94525.0,94519.0,0.58597695]
[1735017623770,0.093667,94525.0,94519.0,0.58597695]
[1735017623958,0.10110018,94525.0,94519.0,0.58597695]
[1735017624664,0.10110018,94525.0,94520.0,0.20771245]
[1735017625073,0.09910018,94525.0,94520.0,0.20771245]
[1735017625273,0.10010018,94525.0,94520.0,0.20771245]
[1735017625473,0.10110018,94525.0,94520.0,0.20771245]
[1735017625875,0.10110018,94525.0,94521.0,0.20771245]
[1735017627476,0.10110018,94525.0,94522.0,0.20771245]
[1735017628169,0.10010018,94525.0,94524.0,0.3608]
[1735017628375,0.10110018,94525.0,94524.0,0.3608]
[1735017628570,0.10110018,94525.0,94522.0,0.20771245]
[1735017628774,0.10110018,94525.0,94523.0,0.20771245]
[1735017630074,0.10110018,94525.0,94524.0,0.20771245]
[1735017633076,0.10110018,94525.0,94524.0,0.2475499]
[1735017634777,0.10110018,94525.0,94524.0,0.20771245]
[1735017637680,0.10110018,94525.0,94524.0,0.22359245]
[1735017643976,0.052973,94514.0,94513.0,0.21890464]
[1735017644179,0.052977,94507.0,94505.0,0.44214858]
[1735017644491,0.3608,94506.0,94505.0,0.44130858]
[1735017645582,0.05298,94502.0,94501.0,0.25239902]
[1735017646584,0.052981,94500.0,94499.0,0.25239902]
[1735017648088,0.052981,94500.0,94499.0,0.001]
[1735017649293,0.089378,94505.0,94499.0,0.001]
[1735017649489,0.052978,94505.0,94499.0,0.001]
[1735017650888,0.12676887,94513.0,94512.0,0.052974]
[1735017651100,0.12676887,94515.0,94514.0,0.052973]
[1735017652391,0.00773601,94522.0,94516.0,0.052972]
[1735017652585,0.3608,94525.0,94516.0,0.052972]
[1735017653693,0.3628,94525.0,94516.0,0.30470186]
[1735017654090,0.052968,94523.0,94516.0,0.30470186]
[1735017655393,0.053968,94523.0,94516.0,0.30470186]
[1735017656187,0.054968,94523.0,94516.0,0.30470186]
[1735017657698,0.054968,94523.0,94517.0,0.01588]
[1735017658396,0.054968,94523.0,94518.0,0.01588]
[1735017658794,0.053968,94523.0,94518.0,0.01588]
[1735017659093,0.054968,94523.0,94518.0,0.01588]
[1735017659402,0.052969,94522.0,94518.0,0.01588]
[1735017659603,0.05297,94519.0,94518.0,0.01588]
[1735017661104,0.05297,94519.0,94518.0,0.01688]
[1735017664398,0.36831584,94525.0,94518.0,0.01688]
[1735017665504,0.36931584,94525.0,94518.0,0.01688]
[1735017665893,0.36931584,94525.0,94520.0,0.052969]
[1735017666093,0.37131584,94525.0,94520.0,0.052969]
[1735017669306,0.37131584,94525.0,94521.0,0.0376]
[1735017669508,0.12676887,94539.0,94524.0,0.3608]
[1735017669705,0.12676887,94539.0,94532.0,0.413763]
[1735017670207,0.13449201,94539.0,94532.0,0.413763]
[1735017670409,0.18745101,94539.0,94532.0,0.413763]
[1735017670799,0.18845101,94539.0,94532.0,0.413763]
[1735017671399,0.06168214,94539.0,94532.0,0.413763]
[1735017673501,0.06068214,94539.0,94532.0,0.415763]
[1735017676902,0.00772314,94539.0,94532.0,0.3628]
[1735017677104,0.052955,94547.0,94535.0,0.052961]
[1735017677812,0.10757951,94550.0,94535.0,0.052961]
[1735017678004,0.3608,94543.0,94532.0,0.3628]
[1735017678209,0.052962,94535.0,94532.0,0.3628]
[1735017678399,0.052962,94535.0,94532.0,0.002]
[1735017678799,0.0767,94542.0,94532.0,0.002]
[1735017678800,0.052963,94533.0,94532.0,0.002]
[1735017679010,0.052965,94529.0,94528.0,0.25172986]
[1735017680110,0.052965,94529.0,94528.0,0.25772986]
[1735017680418,0.052965,94529.0,94528.0,0.006]
[1735017681305,0.052965,94529.0,94528.0,0.008]
[1735017683405,0.0606801,94529.0,94528.0,0.008]
[1735017693820,0.0606801,94529.0,94528.0,0.25972986]
[1735017694821,0.0606801,94529.0,94528.0,0.008]
[1735017699221,0.17972887,94538.0,94531.0,0.052963]
[1735017699421,0.17972887,94538.0,94532.0,0.052963]
[1735017699722,0.17972887,94538.0,94533.0,0.0376]
[1735017700420,0.075,94555.0,94533.0,0.0376]
[1735017700421,0.19007948,94554.0,94553.0,0.052951]
[1735017700611,0.19007948,94554.0,94553.0,0.45406899]
[1735017700813,0.19007948,94554.0,94553.0,0.57509739]
[1735017701213,0.19007948,94554.0,94553.0,0.5347794]
[1735017701616,0.19007948,94554.0,94542.0,0.052957]
[1735017701817,0.052952,94552.0,94546.0,0.3608]
[1735017702816,0.052952,94552.0,94549.0,0.31444711]
[1735017703019,0.06102577,94552.0,94549.0,0.31444711]
[1735017703818,0.06102577,94552.0,94549.0,0.31544711]
[1735017704019,0.06102577,94552.0,94549.0,0.003]
[1735017705625,0.00807377,94552.0,94549.0,0.003]
[1735017705830,0.052953,94551.0,94549.0,0.003]